[Event "CZE-ch Youth G10-G12-G14 2022"]
[Site "Luhacovice"]
[Date "2022.03.18"]
[Round "8.39"]
[White "Lackova, Ludmila"]
[Black "Svrchokrylova, Ludmila"]
[Result "0-1"]
[ECO "D06"]
[WhiteElo "1167"]
[BlackElo "1024"]
[Annotator "NA"]
[PlyCount "54"]
[EventDate "2022.03.12"]
[EventType "swiss"]
[EventCountry "CZE"]
[SourceTitle "playchess.com"]
[Source "ChessBase"]
[SourceQuality "1"]
[TimeControl "40/5400+30:1800+30"]

1. d4 {[%emt 0:00:09]} d5 {[%emt 0:01:45]} 2. c4 {[%emt 0:00:11]} Nf6 {[%emt 0:00:33]} 3. Nc3 {[%emt 0:01:04]} Bf5 {[%emt 0:02:53]} 4. Bf4 {[%emt 0:03:49]} e6 {[%emt 0:02:07]} 5. e3 {[%emt 0:00:49]} Bb4 {[%emt 0:00:28]} 6. Bd3 {[%emt 0:02:57]} Ne4 {[%emt 0:04:38]} 7. Bxe4 {[%emt 0:01:09]} Bxe4 {[%emt 0:01:28]} 8. f3 {[%emt 0:00:52]} Bf5 {[%emt 0:00:30]} 9. cxd5 {[%emt 0:00:37]} exd5 {[%emt 0:00:28]} 10. Nge2 {[%emt 0:01:17]} Nc6 {[%emt 0:00:35]} 11. O-O {[%emt 0:00:34]} Qd7 {[%emt 0:01:01]} 12. a3 {[%emt 0:00:58]} Be7 {[%emt 0:03:33]} 13. Qd2 {[%emt 0:03:11]} O-O-O {[%emt 0:02:18]} 14. Rac1 {[%emt 0:00:44]} g5 {[%emt 0:03:16]} 15. Bg3 {[%emt 0:01:34]} h5 {[%emt 0:01:05]} 16. Be5 {[%emt 0:03:21]} f6 {[%emt 0:00:40]} 17. Bg3 {[%emt 0:00:58]} h4 {[%emt 0:00:44]} 18. Be1 {[%emt 0:01:08]} g4 {[%emt 0:00:44]} 19. f4 {[%emt 0:08:58]} Rdg8 {[%emt 0:03:08]} 20. b4 {[%emt 0:04:21]} g3 {[%emt 0:01:28]} 21. h3 {[%emt 0:02:24]} Bxh3 {[%emt 0:01:12]} 22. Kh1 {[%emt 0:03:47]} Bxg2+ {[%emt 0:00:56]} 23. Kxg2 {[%emt 0:01:55]} h3+ {[%emt 0:00:21]} 24. Kg1 {[%emt 0:00:59]} h2+ {[%emt 0:01:02]} 25. Kg2 {[%emt 0:00:38]} Qh3+ {[%emt 0:00:48]} 26. Kf3 {[%emt 0:00:40]} h1=Q+ {[%emt 0:01:01]} 27. Rxh1 {[%emt 0:00:19]} Qxh1# {[%emt 0:00:16]} 0-1

[Event "CZE-ch Youth G10-G12-G14 2022"]
[Site "Luhacovice"]
[Date "2022.03.18"]
[Round "8.40"]
[White "Filipova, Vanesa"]
[Black "Dufkova, Tereza"]
[Result "0-1"]
[ECO "C28"]
[WhiteElo "1146"]
[BlackElo "1014"]
[Annotator "NA"]
[PlyCount "64"]
[EventDate "2022.03.12"]
[EventType "swiss"]
[EventCountry "CZE"]
[SourceTitle "playchess.com"]
[Source "ChessBase"]
[SourceQuality "1"]
[TimeControl "40/5400+30:1800+30"]

1. e4 {[%emt 0:00:08]} e5 {[%emt 0:00:05]} 2. Nc3 {[%emt 0:00:10]} Bc5 {[%emt 0:00:43]} 3. Bc4 {[%emt 0:00:37]} Nc6 {[%emt 0:00:52]} 4. d3 {[%emt 0:00:41]} Nf6 {[%emt 0:00:15]} 5. Bg5 {[%emt 0:00:30]} h6 {[%emt 0:00:27]} 6. Bh4 {[%emt 0:00:18]} g5 {[%emt 0:00:05]} 7. Bg3 {[%emt 0:00:11]} d6 {[%emt 0:00:11]} 8. h3 {[%emt 0:00:29]} Qe7 {[%emt 0:00:49]} 9. Nge2 {[%emt 0:00:59]} Be6 {[%emt 0:00:23]} 10. Bb3 {[%emt 0:00:41]} O-O-O {[%emt 0:00:12]} 11. Qd2 {[%emt 0:01:27]} d5 {[%emt 0:04:25]} 12. f3 {[%emt 0:09:59]} Bb4 {[%emt 0:04:00]} 13. O-O-O {[%emt 0:00:34]} d4 {[%emt 0:01:35]} 14. Ba4 {[%emt 0:16:23]} dxc3 {[%emt 0:00:55]} 15. Nxc3 {[%emt 0:00:30]} Qd6 {[%emt 0:01:49]} 16. Bxc6 {[%emt 0:03:41]} bxc6 {[%emt 0:00:18]} 17. Qe1 {[%emt 0:08:10]} Qc5 {[%emt 0:13:31]} 18. Bf2 {[%emt 0:09:11]} Qa5 {[%emt 0:00:26]} 19. d4 {[%emt 0:05:47]} Bxc3 {[%emt 0:02:06]} 20. Qxc3 {[%emt 0:00:38]} Qxa2 {[%emt 0:02:58]} 21. Qxc6 {[%emt 0:05:21]} Rd6 {[%emt 0:00:44]} 22. Qa8+ {[%emt 0:00:54]} Kd7 {[%emt 0:00:09]} 23. Qxh8 {[%emt 0:00:25]} Qa1+ {[%emt 0:00:07]} 24. Kd2 {[%emt 0:00:09]} Qa5+ {[%emt 0:00:05]} 25. c3 {[%emt 0:09:53]} Ke7 {[%emt 0:00:14]} 26. Ke1 {[%emt 0:06:05]} Bb3 {[%emt 0:00:48]} 27. Rc1 {[%emt 0:01:17]} Qa2 {[%emt 0:00:26]} 28. Qb8 {[%emt 0:01:53]} Qxb2 {[%emt 0:00:27]} 29. Qxc7+ {[%emt 0:00:33]} Nd7 {[%emt 0:00:26]} 30. Be3 {[%emt 0:00:29]} Ra6 {[%emt 0:01:44]} 31. Rh2 {[%emt 0:03:45]} Ra1 {[%emt 0:00:28]} 32. Rxa1 {[%emt 0:00:34]} Qe2+ {[%emt 0:00:22]} 0-1

[Event "CZE-ch Youth G10-G12-G14 2022"]
[Site "Luhacovice"]
[Date "2022.03.18"]
[Round "8.41"]
[White "Foldynova Julie"]
[Black "Urvalkova Ema"]
[Result "1-0"]
[ECO "D01"]
[WhiteElo "1000"]
[BlackElo "1000"]
[Annotator "NA"]
[PlyCount "62"]
[EventDate "2022.03.12"]
[EventType "swiss"]
[EventCountry "CZE"]
[SourceTitle "playchess.com"]
[Source "ChessBase"]
[SourceQuality "1"]
[TimeControl "40/5400+30:1800+30"]

1. d4 {[%emt 0:00:04]} d5 {[%emt 0:00:08]} 2. Nc3 {[%emt 0:00:07]} Nf6 {[%emt 0:00:09]} 3. Bg5 {[%emt 0:00:05]} Bf5 {[%emt 0:00:16]} 4. e3 {[%emt 0:00:27]} Nbd7 {[%emt 0:00:35]} 5. Bd3 {[%emt 0:00:48]} Bxd3 {[%emt 0:00:16]} 6. cxd3 {[%emt 0:01:38]} c6 {[%emt 0:00:35]} 7. Qf3 {[%emt 0:02:09]} e6 {[%emt 0:01:20]} 8. e4 {[%emt 0:01:40]} Be7 {[%emt 0:00:35]} 9. e5 {[%emt 0:00:48]} Ng8 {[%emt 0:02:50]} 10. Bxe7 {[%emt 0:03:22]} Nxe7 {[%emt 0:00:46]} 11. Nge2 {[%emt 0:07:10]} O-O {[%emt 0:02:34]} 12. Ng3 {[%emt 0:00:30]} g6 {[%emt 0:00:30]} 13. h4 {[%emt 0:00:30]} Nf5 {[%emt 0:02:27]} 14. Nxf5 {[%emt 0:00:19]} exf5 {[%emt 0:00:48]} 15. Qh3 {[%emt 0:04:34]} Re8 {[%emt 0:02:15]} 16. h5 {[%emt 0:03:36]} Nf8 {[%emt 0:01:12]} 17. g4 {[%emt 0:06:47]} fxg4 {[%emt 0:01:55]} 18. Qxg4 {[%emt 0:00:43]} Qa5 {[%emt 0:03:03]} 19. f4 {[%emt 0:01:51]} Kh8 {[%emt 0:02:39]} 20. hxg6 {[%emt 0:07:54]} fxg6 {[%emt 0:01:07]} 21. f5 {[%emt 0:03:00]} Kg7 {[%emt 0:01:02]} 22. Kd2 {[%emt 0:03:14]} Rad8 {[%emt 0:02:05]} 23. fxg6 {[%emt 0:01:54]} hxg6 {[%emt 0:01:14]} 24. Raf1 {[%emt 0:02:12]} Qc7 {[%emt 0:02:26]} 25. Ne2 {[%emt 0:02:09]} Qa5+ {[%emt 0:01:19]} 26. Nc3 {[%emt 0:00:20]} Qc7 {[%emt 0:00:31]} 27. a3 {[%emt 0:00:06]} c5 {[%emt 0:00:52]} 28. dxc5 {[%emt 0:01:09]} Rxe5 {[%emt 0:00:58]} 29. d4 {[%emt 0:03:18]} Ree8 {[%emt 0:02:20]} 30. Qh4 {[%emt 0:01:46]} g5 {[%emt 0:03:18]} 31. Qh6+ {[%emt 0:01:02]} Kg8 {[%emt 0:00:25]} 1-0

[Event "CZE-ch Youth G10-G12-G14 2022"]
[Site "Luhacovice"]
[Date "2022.03.18"]
[Round "8.42"]
[White "Zilava Lucie"]
[Black "Koval, Anna"]
[Result "1-0"]
[ECO "C30"]
[WhiteElo "1059"]
[BlackElo "1278"]
[Annotator "NA"]
[PlyCount "59"]
[EventDate "2022.03.12"]
[EventType "swiss"]
[EventCountry "CZE"]
[SourceTitle "playchess.com"]
[Source "ChessBase"]
[SourceQuality "1"]
[TimeControl "40/5400+30:1800+30"]

1. e4 {[%emt 0:00:08]} e5 {[%emt 0:00:01]} 2. Nc3 {[%emt 0:00:07]} Nc6 {[%emt 0:00:19]} 3. Bc4 {[%emt 0:00:09]} Bc5 {[%emt 0:00:11]} 4. d3 {[%emt 0:00:03]} d6 {[%emt 0:00:16]} 5. f4 {[%emt 0:00:07]} Nf6 {[%emt 0:02:13]} 6. Nf3 {[%emt 0:00:22]} h6 {[%emt 0:01:15]} 7. Bd2 {[%emt 0:01:09]} Bg4 {[%emt 0:00:21]} 8. h3 {[%emt 0:00:19]} Bh5 {[%emt 0:00:09]} 9. g4 {[%emt 0:01:33]} Bg6 {[%emt 0:00:10]} 10. Qe2 {[%emt 0:00:12]} Nd4 {[%emt 0:00:59]} 11. Nxd4 {[%emt 0:00:55]} Bxd4 {[%emt 0:00:16]} 12. O-O-O {[%emt 0:00:16]} Qe7 {[%emt 0:01:21]} 13. f5 {[%emt 0:04:55]} Bh7 {[%emt 0:00:21]} 14. g5 {[%emt 0:00:19]} Ng8 {[%emt 0:02:49]} 15. h4 {[%emt 0:01:50]} O-O-O {[%emt 0:01:09]} 16. Qg2 {[%emt 0:04:12]} hxg5 {[%emt 0:00:25]} 17. hxg5 {[%emt 0:01:12]} g6 {[%emt 0:01:04]} 18. f6 {[%emt 0:01:26]} Nxf6 {[%emt 0:01:04]} 19. gxf6 {[%emt 0:02:14]} Qxf6 {[%emt 0:00:02]} 20. Rdf1 {[%emt 0:00:38]} Qe7 {[%emt 0:02:56]} 21. Bg5 {[%emt 0:02:56]} Qd7 {[%emt 0:01:12]} 22. Bxd8 {[%emt 0:00:42]} Qxd8 {[%emt 0:00:06]} 23. Rxf7 {[%emt 0:01:36]} Be3+ {[%emt 0:00:36]} 24. Kb1 {[%emt 0:03:07]} b6 {[%emt 0:00:37]} 25. Rhxh7 {[%emt 0:02:48]} Rxh7 {[%emt 0:00:13]} 26. Rxh7 {[%emt 0:00:08]} g5 {[%emt 0:00:13]} 27. Ba6+ {[%emt 0:00:30]} Kb8 {[%emt 0:00:33]} 28. Qh1 {[%emt 0:00:26]} Qf6 {[%emt 0:00:34]} 29. Rh8+ {[%emt 0:00:25]} Qxh8 {[%emt 0:00:18]} 30. Qxh8# {[%emt 0:00:07]} 1-0

[Event "CZE-ch Youth G10-G12-G14 2022"]
[Site "Luhacovice"]
[Date "2022.03.19"]
[Round "9.1"]
[White "Vanickova Natalie"]
[Black "Lackova, Lucie"]
[Result "0-1"]
[ECO "C47"]
[WhiteElo "1000"]
[BlackElo "1142"]
[Annotator "NA"]
[PlyCount "38"]
[EventDate "2022.03.12"]
[EventType "swiss"]
[EventCountry "CZE"]
[SourceTitle "playchess.com"]
[Source "ChessBase"]
[SourceQuality "1"]
[TimeControl "40/5400+30:1800+30"]

1. e4 {[%emt 0:00:04]} e5 {[%emt 0:00:04]} 2. Nf3 {[%emt 0:00:12]} Nc6 {[%emt 0:00:06]} 3. d4 {[%emt 0:00:28]} exd4 {[%emt 0:00:10]} 4. Nxd4 {[%emt 0:00:27]} Nf6 {[%emt 0:00:07]} 5. Nc3 {[%emt 0:00:18]} Bb4 {[%emt 0:00:11]} 6. Bg5 {[%emt 0:00:42]} O-O {[%emt 0:00:57]} 7. Qd2 {[%emt 0:02:15]} Nxe4 {[%emt 0:08:33]} 8. Qe3 {[%emt 0:04:14]} Nxg5 {[%emt 0:02:26]} 9. Bc4 {[%emt 0:01:58]} Re8 {[%emt 0:01:29]} 10. Ne6 {[%emt 0:02:33]} Nxe6 {[%emt 0:01:08]} 11. O-O {[%emt 0:00:53]} Bxc3 {[%emt 0:01:35]} 12. Qxc3 {[%emt 0:00:54]} d5 {[%emt 0:00:50]} 13. Bd3 {[%emt 0:02:15]} Ned4 {[%emt 0:00:43]} 14. Qd2 {[%emt 0:01:54]} Bh3 {[%emt 0:01:48]} 15. Qf4 {[%emt 0:03:40]} Bf5 {[%emt 0:00:57]} 16. Bxf5 {[%emt 0:01:03]} Ne2+ {[%emt 0:00:14]} 17. Kh1 {[%emt 0:00:40]} Nxf4 {[%emt 0:00:15]} 18. Rad1 {[%emt 0:01:21]} Qg5 {[%emt 0:00:48]} 19. Bd7 {[%emt 0:03:39]} Qxg2# {[%emt 0:00:30]} 0-1

[Event "CZE-ch Youth G10-G12-G14 2022"]
[Site "Luhacovice"]
[Date "2022.03.19"]
[Round "9.2"]
[White "Romanko Diana"]
[Black "Janouskova, Eliska"]
[Result "0-1"]
[ECO "A00"]
[WhiteElo "1000"]
[BlackElo "1167"]
[Annotator "NA"]
[PlyCount "130"]
[EventDate "2022.03.12"]
[EventType "swiss"]
[EventCountry "CZE"]
[SourceTitle "playchess.com"]
[Source "ChessBase"]
[SourceQuality "1"]
[TimeControl "40/5400+30:1800+30"]

1. b4 {[%emt 0:00:03]} d5 {[%emt 0:01:54]} 2. Bb2 {[%emt 0:00:06]} a6 {[%emt 0:02:03]} 3. e3 {[%emt 0:00:25]} Nc6 {[%emt 0:01:44]} 4. a3 {[%emt 0:01:57]} e5 {[%emt 0:01:46]} 5. b5 {[%emt 0:00:46]} axb5 {[%emt 0:01:11]} 6. Bxb5 {[%emt 0:00:06]} Bd6 {[%emt 0:01:41]} 7. Bxc6+ {[%emt 0:00:17]} bxc6 {[%emt 0:01:49]} 8. d4 {[%emt 0:00:32]} e4 {[%emt 0:02:25]} 9. Nd2 {[%emt 0:01:51]} Nf6 {[%emt 0:02:49]} 10. c4 {[%emt 0:01:25]} O-O {[%emt 0:06:29]} 11. c5 {[%emt 0:00:25]} Be7 {[%emt 0:02:20]} 12. Ne2 {[%emt 0:00:59]} Be6 {[%emt 0:05:42]} 13. Ng3 {[%emt 0:01:15]} Qd7 {[%emt 0:02:30]} 14. h3 {[%emt 0:02:19]} h6 {[%emt 0:03:25]} 15. O-O {[%emt 0:07:20]} Nh7 {[%emt 0:04:09]} 16. f3 {[%emt 0:08:29]} exf3 {[%emt 0:03:44]} 17. Nxf3 {[%emt 0:01:23]} Ng5 {[%emt 0:07:37]} 18. Ne5 {[%emt 0:02:03]} Qe8 {[%emt 0:01:03]} 19. Qh5 {[%emt 0:05:11]} Bf6 {[%emt 0:07:47]} 20. h4 {[%emt 0:05:36]} Ne4 {[%emt 0:03:28]} 21. Nxe4 {[%emt 0:05:23]} dxe4 {[%emt 0:00:28]} 22. Rf4 {[%emt 0:04:40]} Bxe5 {[%emt 0:05:48]} 23. dxe5 {[%emt 0:01:57]} Qe7 {[%emt 0:01:26]} 24. Rxe4 {[%emt 0:03:41]} Qxc5 {[%emt 0:00:34]} 25. Rc1 {[%emt 0:01:21]} Qb6 {[%emt 0:01:06]} 26. Bd4 {[%emt 0:02:31]} c5 {[%emt 0:03:35]} 27. Bxc5 {[%emt 0:01:29]} Qc6 {[%emt 0:00:12]} 28. Bxf8 {[%emt 0:08:57]} Qxc1+ {[%emt 0:00:15]} 29. Kh2 {[%emt 0:00:39]} Rxf8 {[%emt 0:01:08]} 30. a4 {[%emt 0:03:03]} Qb2 {[%emt 0:00:53]} 31. Rf4 {[%emt 0:01:54]} Rc8 {[%emt 0:02:25]} 32. a5 {[%emt 0:00:59]} Qa1 {[%emt 0:00:19]} 33. Rf3 {[%emt 0:00:48]} Qxa5 {[%emt 0:00:57]} 34. Rg3 {[%emt 0:00:19]} Qa1 {[%emt 0:03:02]} 35. Rf3 {[%emt 0:02:21]} c5 {[%emt 0:00:28]} 36. e4 {[%emt 0:00:05]} c4 {[%emt 0:00:30]} 37. Rf2 {[%emt 0:01:23]} c3 {[%emt 0:00:34]} 38. Qf3 {[%emt 0:01:05]} c2 {[%emt 0:01:05]} 39. Rf1 {[%emt 0:00:22]} c1=Q {[%emt 0:01:14]} 40. Rxc1 {[%emt 0:00:09]} Rxc1 {[%emt 0:00:18]} 41. h5 {[%emt 0:30:24]} Qb1 {[%emt 0:30:48]} 42. Qe3 {[%emt 0:00:35]} Rh1+ {[%emt 0:00:40]} 43. Kg3 {[%emt 0:00:35]} Qb3 {[%emt 0:00:27]} 44. Qxb3 {[%emt 0:00:13]} Bxb3 {[%emt 0:00:05]} 45. Kg4 {[%emt 0:00:30]} Bd1+ {[%emt 0:00:42]} 46. Kf4 {[%emt 0:00:36]} Rxh5 {[%emt 0:00:15]} 47. g4 {[%emt 0:00:14]} Rh1 {[%emt 0:00:15]} 48. Kg3 {[%emt 0:00:10]} Rg1+ {[%emt 0:00:10]} 49. Kh2 {[%emt 0:00:05]} Rxg4 {[%emt 0:00:09]} 50. Kh3 {[%emt 0:00:07]} Rxe4 {[%emt 0:00:21]} 51. Kg3 {[%emt 0:00:14]} Rxe5 {[%emt 0:00:22]} 52. Kf2 {[%emt 0:00:09]} Rg5 {[%emt 0:00:14]} 53. Ke1 {[%emt 0:00:10]} h5 {[%emt 0:00:06]} 54. Kxd1 {[%emt 0:00:12]} h4 {[%emt 0:00:06]} 55. Ke1 {[%emt 0:00:07]} h3 {[%emt 0:00:07]} 56. Kd2 {[%emt 0:00:06]} Rg3 {[%emt 0:00:19]} 57. Ke2 {[%emt 0:01:05]} Rg6 {[%emt 0:00:07]} 58. Kd3 {[%emt 0:01:25]} h2 {[%emt 0:00:11]} 59. Ke4 {[%emt 0:00:10]} h1=Q+ {[%emt 0:00:17]} 60. Kd4 {[%emt 0:00:09]} Rg5 {[%emt 0:00:09]} 61. Kc4 {[%emt 0:01:20]} Qe4+ {[%emt 0:01:11]} 62. Kc3 {[%emt 0:00:26]} Rg3+ {[%emt 0:00:07]} 63. Kd2 {[%emt 0:00:09]} Qh4 {[%emt 0:00:27]} 64. Kd1 {[%emt 0:00:15]} Qh2 {[%emt 0:00:10]} 65. Ke1 {[%emt 0:00:09]} Rg1# {[%emt 0:00:09]} 0-1

[Event "CZE-ch Youth G10-G12-G14 2022"]
[Site "Luhacovice"]
[Date "2022.03.19"]
[Round "9.3"]
[White "Vancakova, Veronika"]
[Black "Silhankova Simona"]
[Result "1-0"]
[ECO "D08"]
[WhiteElo "1300"]
[BlackElo "1000"]
[Annotator "NA"]
[PlyCount "85"]
[EventDate "2022.03.12"]
[EventType "swiss"]
[EventCountry "CZE"]
[SourceTitle "playchess.com"]
[Source "ChessBase"]
[SourceQuality "1"]
[TimeControl "40/5400+30:1800+30"]

1. d4 {[%emt 0:00:02]} d5 {[%emt 0:00:14]} 2. c4 {[%emt 0:00:05]} e5 {[%emt 0:00:29]} 3. dxe5 {[%emt 0:00:05]} d4 {[%emt 0:00:33]} 4. Nf3 {[%emt 0:00:32]} Nc6 {[%emt 0:00:28]} 5. a3 {[%emt 0:00:07]} Nge7 {[%emt 0:01:49]} 6. b3 {[%emt 0:10:05]} g6 {[%emt 0:01:25]} 7. Bb2 {[%emt 0:01:17]} Bg7 {[%emt 0:01:41]} 8. Nbd2 {[%emt 0:10:28]} O-O {[%emt 0:01:46]} 9. g3 {[%emt 0:02:01]} Bg4 {[%emt 0:01:45]} 10. Bg2 {[%emt 0:01:08]} Nf5 {[%emt 0:02:29]} 11. h3 {[%emt 0:01:36]} Bxf3 {[%emt 0:00:46]} 12. Nxf3 {[%emt 0:00:09]} h6 {[%emt 0:03:07]} 13. O-O {[%emt 0:00:36]} g5 {[%emt 0:01:59]} 14. Qd3 {[%emt 0:08:21]} Qd7 {[%emt 0:01:33]} 15. Kh2 {[%emt 0:17:25]} h5 {[%emt 0:01:12]} 16. Nxg5 {[%emt 0:05:45]} Nxe5 {[%emt 0:02:15]} 17. Qc2 {[%emt 0:02:07]} h4 {[%emt 0:02:22]} 18. g4 {[%emt 0:02:49]} d3 {[%emt 0:01:27]} 19. exd3 {[%emt 0:02:33]} Qd6 {[%emt 0:02:30]} 20. Kh1 {[%emt 0:09:08]} Nd4 {[%emt 0:04:03]} 21. Bxd4 {[%emt 0:02:23]} Qxd4 {[%emt 0:00:29]} 22. Rae1 {[%emt 0:08:09]} Rae8 {[%emt 0:01:35]} 23. Be4 {[%emt 0:04:03]} f5 {[%emt 0:02:48]} 24. Bd5+ {[%emt 0:04:19]} Kh8 {[%emt 0:00:54]} 25. f4 {[%emt 0:03:51]} Nxd3 {[%emt 0:07:34]} 26. Nf7+ {[%emt 0:01:37]} Kh7 {[%emt 0:04:04]} 27. Ng5+ {[%emt 0:00:06]} Kh8 {[%emt 0:00:54]} 28. Rd1 {[%emt 0:02:02]} Re3 {[%emt 0:03:55]} 29. Nf3 {[%emt 0:00:52]} Qf6 {[%emt 0:06:07]} 30. Rxd3 {[%emt 0:00:33]} Rxd3 {[%emt 0:01:08]} 31. Qxd3 {[%emt 0:00:14]} fxg4 {[%emt 0:01:52]} 32. Ng5 {[%emt 0:00:58]} Qh6 {[%emt 0:00:56]} 33. hxg4 {[%emt 0:00:36]} h3 {[%emt 0:02:50]} 34. Qxh3 {[%emt 0:00:00]} Qxh3+ {[%emt 0:02:04]} 35. Nxh3 {[%emt 0:00:00]} a5 {[%emt 0:02:57]} 36. Rf3 {[%emt 0:00:00]} c6 {[%emt 0:00:42]} 37. Be6 {[%emt 0:00:00]} b5 {[%emt 0:01:36]} 38. cxb5 {[%emt 0:00:00]} cxb5 {[%emt 0:00:44]} 39. Bd7 {[%emt 0:00:00]} b4 {[%emt 0:02:44]} 40. a4 {[%emt 0:00:00]} Rd8 {[%emt 0:02:30]} 41. Be6 {[%emt 0:30:00]} Rd1+ {[%emt 0:32:14]} 42. Kg2 {[%emt 0:00:04]} Kh7 {[%emt 0:04:40]} 43. Bf7 {[%emt 0:01:41]} 1-0

[Event "CZE-ch Youth G10-G12-G14 2022"]
[Site "Luhacovice"]
[Date "2022.03.19"]
[Round "9.4"]
[White "Kusova, Nikola"]
[Black "Stepankova Linda"]
[Result "1-0"]
[ECO "B02"]
[WhiteElo "1227"]
[BlackElo "1000"]
[Annotator "NA"]
[PlyCount "97"]
[EventDate "2022.03.12"]
[EventType "swiss"]
[EventCountry "CZE"]
[SourceTitle "playchess.com"]
[Source "ChessBase"]
[SourceQuality "1"]
[TimeControl "40/5400+30:1800+30"]

1. e4 {[%emt 0:00:07]} d5 {[%emt 0:00:05]} 2. exd5 {[%emt 0:00:17]} Nf6 {[%emt 0:00:05]} 3. Nc3 {[%emt 0:01:46]} Nxd5 {[%emt 0:00:05]} 4. d4 {[%emt 0:01:43]} Bf5 {[%emt 0:01:05]} 5. Bd3 {[%emt 0:02:48]} e6 {[%emt 0:03:41]} 6. Nf3 {[%emt 0:14:52]} Bb4 {[%emt 0:03:20]} 7. Bd2 {[%emt 0:02:09]} Bg4 {[%emt 0:09:13]} 8. Be4 {[%emt 0:07:00]} f5 {[%emt 0:09:17]} 9. Bxd5 {[%emt 0:04:26]} exd5 {[%emt 0:00:39]} 10. Qe2+ {[%emt 0:06:08]} Kf8 {[%emt 0:20:33]} 11. O-O-O {[%emt 0:03:44]} Nc6 {[%emt 0:02:47]} 12. Qb5 {[%emt 0:01:43]} Bxf3 {[%emt 0:11:04]} 13. gxf3 {[%emt 0:00:32]} Bxc3 {[%emt 0:03:33]} 14. Bxc3 {[%emt 0:01:26]} Rb8 {[%emt 0:03:06]} 15. Rhe1 {[%emt 0:03:17]} a6 {[%emt 0:03:02]} 16. Qb3 {[%emt 0:01:12]} Kf7 {[%emt 0:01:28]} 17. Kb1 {[%emt 0:03:11]} Qd6 {[%emt 0:02:25]} 18. h3 {[%emt 0:03:38]} b5 {[%emt 0:03:15]} 19. a3 {[%emt 0:06:52]} a5 {[%emt 0:03:03]} 20. Bd2 {[%emt 0:02:18]} Nxd4 {[%emt 0:05:10]} 21. Qd3 {[%emt 0:00:41]} Qf6 {[%emt 0:03:25]} 22. Bc3 {[%emt 0:01:45]} c5 {[%emt 0:02:10]} 23. b4 {[%emt 0:01:10]} axb4 {[%emt 0:01:36]} 24. axb4 {[%emt 0:00:23]} cxb4 {[%emt 0:01:28]} 25. Bxd4 {[%emt 0:01:07]} Qg5 {[%emt 0:01:22]} 26. Be5 {[%emt 0:01:27]} Rbd8 {[%emt 0:01:26]} 27. Qxb5 {[%emt 0:01:49]} Rhe8 {[%emt 0:01:09]} 28. Rxd5 {[%emt 0:01:34]} Rxd5 {[%emt 0:00:36]} 29. Qxd5+ {[%emt 0:00:12]} Kg6 {[%emt 0:00:28]} 30. Qc6+ {[%emt 0:00:59]} Kf7 {[%emt 0:00:55]} 31. Qd7+ {[%emt 0:01:30]} Qe7 {[%emt 0:00:53]} 32. Qxe7+ {[%emt 0:01:19]} Rxe7 {[%emt 0:00:17]} 33. Kc1 {[%emt 0:00:48]} Ke8 {[%emt 0:00:49]} 34. Kd2 {[%emt 0:01:22]} Kd7 {[%emt 0:00:22]} 35. f4 {[%emt 0:02:40]} Kc6 {[%emt 0:00:41]} 36. Rb1 {[%emt 0:01:21]} Kc5 {[%emt 0:00:18]} 37. Rxb4 {[%emt 0:01:14]} g5 {[%emt 0:02:13]} 38. Rb8 {[%emt 0:01:14]} g4 {[%emt 0:00:51]} 39. hxg4 {[%emt 0:01:20]} fxg4 {[%emt 0:00:13]} 40. Rd8 {[%emt 0:01:41]} Rf7 {[%emt 0:00:38]} 41. Rg8 {[%emt 0:35:26]} h5 {[%emt 0:30:48]} 42. Rg5 {[%emt 0:00:54]} Rh7 {[%emt 0:00:29]} 43. f5 {[%emt 0:02:15]} h4 {[%emt 0:00:14]} 44. f6 {[%emt 0:01:37]} h3 {[%emt 0:00:32]} 45. Rg7 {[%emt 0:01:47]} Rxg7 {[%emt 0:01:22]} 46. fxg7 {[%emt 0:00:19]} g3 {[%emt 0:00:06]} 47. Bxg3 {[%emt 0:00:21]} h2 {[%emt 0:00:06]} 48. Bxh2 {[%emt 0:00:14]} Kd5 {[%emt 0:00:12]} 49. g8=Q+ {[%emt 0:00:23]} 1-0

[Event "CZE-ch Youth G10-G12-G14 2022"]
[Site "Luhacovice"]
[Date "2022.03.19"]
[Round "9.5"]
[White "Lickova, Anna"]
[Black "Jenikova Sabina"]
[Result "1-0"]
[ECO "C54"]
[WhiteElo "1016"]
[BlackElo "1076"]
[Annotator "NA"]
[PlyCount "47"]
[EventDate "2022.03.12"]
[EventType "swiss"]
[EventCountry "CZE"]
[SourceTitle "playchess.com"]
[Source "ChessBase"]
[SourceQuality "1"]
[TimeControl "40/5400+30:1800+30"]

1. e4 {[%emt 0:00:03]} e5 {[%emt 0:00:08]} 2. Nf3 {[%emt 0:00:10]} Nc6 {[%emt 0:00:30]} 3. Bc4 {[%emt 0:00:07]} Bc5 {[%emt 0:00:24]} 4. c3 {[%emt 0:00:17]} Nf6 {[%emt 0:01:21]} 5. d4 {[%emt 0:00:26]} d5 {[%emt 0:00:51]} 6. exd5 {[%emt 0:01:54]} Nxd5 {[%emt 0:04:43]} 7. dxc5 {[%emt 0:03:18]} Be6 {[%emt 0:00:35]} 8. Bb5 {[%emt 0:01:20]} Qd7 {[%emt 0:01:15]} 9. Nxe5 {[%emt 0:00:43]} Qe7 {[%emt 0:00:54]} 10. Nxc6 {[%emt 0:02:11]} Bd7+ {[%emt 0:00:56]} 11. Nxe7 {[%emt 0:00:12]} Kxe7 {[%emt 0:00:23]} 12. Bxd7 {[%emt 0:00:05]} Kxd7 {[%emt 0:00:07]} 13. Qxd5+ {[%emt 0:00:03]} Ke7 {[%emt 0:00:31]} 14. O-O {[%emt 0:00:44]} Rhe8 {[%emt 0:00:39]} 15. Re1+ {[%emt 0:00:19]} Kf8 {[%emt 0:00:19]} 16. Rxe8+ {[%emt 0:00:21]} Rxe8 {[%emt 0:00:08]} 17. Kf1 {[%emt 0:00:18]} Kg8 {[%emt 0:00:18]} 18. Bf4 {[%emt 0:01:02]} c6 {[%emt 0:00:28]} 19. Qd7 {[%emt 0:00:11]} Rf8 {[%emt 0:00:17]} 20. Nd2 {[%emt 0:00:13]} a6 {[%emt 0:00:38]} 21. Re1 {[%emt 0:00:06]} a5 {[%emt 0:00:34]} 22. Re8 {[%emt 0:00:07]} a4 {[%emt 0:00:23]} 23. Rxf8+ {[%emt 0:00:03]} Kxf8 {[%emt 0:00:12]} 24. Qd8# {[%emt 0:00:02]} 1-0